fUST/lending_fUST_20250127
["ID","MTS","AMOUNT","RATE_DAILY","PERIOD"]
[350532376,1737948650852,-5174.34,0.00017804,2]
[350532378,1737948650862,-823.08,0.00017804,2]
[350532380,1737948650871,-500.0,0.00017804,2]
[350532381,1737948650881,-166.83778104,0.00017805,2]
[350532384,1737948650891,-287.94367,0.00017805,2]
[350532386,1737948650900,-287.94367,0.00017805,2]
[350532388,1737948650910,-524.26692336,0.00017805,2]
[350532390,1737948650919,-281.072953,0.00017805,2]
[350532392,1737948650928,-506.311354,0.00017805,2]
[350532393,1737948650938,-281.072953,0.00017805,2]
[350532396,1737948650947,-506.311354,0.00017805,2]
[350532398,1737948650956,-532.255471,0.00017805,2]
[350532400,1737948650966,-154.3508,0.00017805,2]
[350532402,1737948650975,-151.0,0.00017805,2]
[350532404,1737948650984,-532.255471,0.00017805,2]
[350532406,1737948650993,-346.03952,0.00017805,2]
[350532408,1737948651002,-346.03952,0.00017805,2]
[350532410,1737948651012,-151.0,0.00017805,2]
[350532411,1737948651022,-151.0,0.00017805,2]
[350532413,1737948651031,-151.0,0.00017805,2]
[350532415,1737948651041,-151.0,0.00017805,2]
[350532417,1737948651050,-500.0,0.00017805,2]
[350532419,1737948651059,-572.18314445,0.00017805,2]
[350532421,1737948651068,-500.0,0.00017806,2]
[350532423,1737948651077,-481.23476375,0.00017934,2]
[350532425,1737948651087,-897.09,0.00017939,2]
[350532427,1737948651097,-500.0,0.00017939,2]
[350532430,1737948651107,-1080.97,0.0001794,2]
[350532432,1737948651116,-2381.41,0.0001794,2]
[350532434,1737948651126,-824.06,0.0001794,2]
[350532436,1737948651135,-1084.01,0.0001794,2]
[350532438,1737948651145,-500.0,0.0001794,2]
[350532440,1737948651154,-500.0,0.0001794,2]
[350532442,1737948651163,-571.86,0.0001794,2]
[350532444,1737948651173,-500.0,0.0001794,2]
[350532446,1737948651182,-500.0,0.0001794,2]
[350532448,1737948651191,-500.0,0.0001794,2]
[350532450,1737948651200,-500.0,0.0001794,2]
[350532452,1737948651209,-484.79940516,0.0001794,2]
[350532460,1737948651275,-500.0,0.00016572,2]
[350532462,1737948651284,-151.276498,0.00017667,2]
[350532464,1737948651293,-327.04059484,0.0001794,2]
[350532466,1737948651302,-500.0,0.0001794,2]
[350532468,1737948651311,-500.0,0.0001794,2]
[350532470,1737948651320,-500.0,0.00017941,2]
[350532472,1737948651329,-68.62340596,0.00017941,2]
[350532474,1737948651341,-431.37659404,0.00017941,2]
[350532476,1737948651350,-2345.88424746,0.00017941,2]
[350532478,1737948651362,-1189.16575254,0.00017941,2]
[350532481,1737948651371,-500.0,0.00017941,2]
[350532483,1737948651381,-151.0,0.00017941,2]
[350532485,1737948651391,-151.0,0.00017941,2]
[350532487,1737948651403,-621.36,0.00017941,2]
[350532489,1737948651413,-467.17515159,0.00017941,2]
[350532508,1737948651583,-500.99567581,0.00016569,2]
[350532510,1737948651593,-151.0,0.00017667,2]
[350532512,1737948651602,-2136.72484841,0.00017941,2]
[350532514,1737948651611,-500.0,0.00017941,2]
[350532516,1737948651620,-13478.26,0.00017941,2]
[350532518,1737948651629,-606.42995,0.00017941,2]
[350532520,1737948651638,-606.42995,0.00017941,2]
[350532522,1737948651648,-850.65,0.00017941,2]
[350532524,1737948651657,-1442.638918,0.00017941,2]
[350532526,1737948651667,-542.45,0.00017941,2]
[350532538,1737948651767,-1442.638918,0.00017941,2]
[350532540,1737948651776,-393.922412,0.00017941,2]
[350532542,1737948651786,-393.922412,0.00017941,2]
[350532544,1737948651796,-151.0,0.00017941,2]
[350532546,1737948651805,-694.5,0.00017941,2]
[350532548,1737948651814,-3016.32117206,0.00017941,2]
[350532641,1737948652677,-2158.01882794,0.00017941,2]
[350532644,1737948652687,-823.08,0.00017941,2]
[350532645,1737948652697,-500.0,0.00017941,2]
[350532647,1737948652707,-151.0,0.00017942,2]
[350532649,1737948652716,-233.070046,0.00017942,2]
[350532651,1737948652726,-233.070046,0.00017942,2]
[350532653,1737948652735,-284.116214,0.00017942,2]
[350532655,1737948652744,-284.116214,0.00017942,2]
[350532657,1737948652753,-500.0,0.00017942,2]
[350532659,1737948652762,-500.0,0.00017943,2]
[350532661,1737948652771,-342.0947933,0.00017945,2]
[350532663,1737948652781,-309.41913,0.00017945,2]
[350532665,1737948652790,-151.0,0.00018,2]
[350532667,1737948652800,-897.09,0.00018076,2]
[350532669,1737948652809,-500.0,0.00018076,2]
[350532671,1737948652819,-1080.97,0.00018077,2]
[350532673,1737948652828,-2381.41,0.00018077,2]
[350532675,1737948652838,-824.06,0.00018077,2]
[350532677,1737948652847,-1084.01,0.00018077,2]
[350532679,1737948652857,-500.0,0.00018077,2]
[350532681,1737948652866,-500.0,0.00018077,2]
[350532683,1737948652875,-571.86,0.00018077,2]
[350532685,1737948652884,-500.0,0.00018077,2]
[350532687,1737948652893,-500.0,0.00018077,2]
[350532689,1737948652903,-500.0,0.00018077,2]
[350532691,1737948652912,-500.0,0.00018077,2]
[350532693,1737948652922,-811.84,0.00018077,2]
[350532695,1737948652931,-500.0,0.00018077,2]
[350532697,1737948652941,-500.0,0.00018077,2]
[350532699,1737948652950,-161.50234174,0.00018078,2]
[350532701,1737948652960,-500.0,0.00018078,2]
[350532703,1737948652969,-3535.05,0.00018078,2]
[350532705,1737948652978,-500.0,0.00018078,2]
[350532707,1737948652988,-621.36,0.00018078,2]
[350532709,1737948652998,-2603.9,0.00018078,2]
[350532711,1737948653009,-500.0,0.00018078,2]
[350532713,1737948653019,-13478.26,0.00018078,2]
[350532715,1737948653028,-850.65,0.00018078,2]
[350532718,1737948653038,-542.45,0.00018078,2]
[350532719,1737948653048,-694.5,0.00018078,2]
[350532721,1737948653057,-5174.34,0.00018078,2]
[350532723,1737948653067,-823.08,0.00018078,2]
[350532725,1737948653076,-500.0,0.00018078,2]
[350532727,1737948653085,-489.148651,0.00018079,2]
[350532728,1737948653094,-489.148651,0.00018079,2]
[350532729,1737948653103,-151.0,0.00018079,2]
[350532730,1737948653111,-334.254962,0.00018079,2]
[350532731,1737948653122,-334.254962,0.00018079,2]
[350532732,1737948653131,-151.0,0.00018079,2]
[350532733,1737948653140,-556.14369276,0.00018079,2]
[350532734,1737948653149,-263.543028,0.00018079,2]
[350532735,1737948653158,-263.543028,0.00018079,2]
[350532736,1737948653167,-500.0,0.0001808,2]
[350532737,1737948653177,-481.23476375,0.00018141,2]
[350532738,1737948653186,-1000.0,0.0001816,2]
[350532739,1737948653195,-151.0,0.000182,2]
[350532740,1737948653204,-897.09,0.00018213,2]
[350532741,1737948653213,-500.0,0.00018213,2]
[350532742,1737948653222,-1080.97,0.00018214,2]
[350532743,1737948653231,-2381.41,0.00018214,2]
[350532745,1737948653241,-824.06,0.00018214,2]
[350532746,1737948653250,-1084.01,0.00018214,2]
[350532748,1737948653260,-500.0,0.00018214,2]
[350532750,1737948653269,-500.0,0.00018214,2]
[350532752,1737948653279,-571.86,0.00018214,2]
[350532754,1737948653288,-500.0,0.00018214,2]
[350532756,1737948653297,-500.0,0.00018214,2]
[350532758,1737948653307,-500.0,0.00018214,2]
[350532760,1737948653316,-500.0,0.00018214,2]
[350532762,1737948653325,-811.84,0.00018214,2]
[350532764,1737948653334,-500.0,0.00018214,2]
[350532766,1737948653343,-500.0,0.00018214,2]
[350532768,1737948653353,-439.14,0.00018215,2]
[350532770,1737948653362,-3535.05,0.00018215,2]
[350532772,1737948653371,-500.0,0.00018215,2]
[350532774,1737948653381,-621.36,0.00018215,2]
[350532776,1737948653392,-2603.9,0.00018215,2]
[350532778,1737948653405,-266.67713332,0.00018215,2]
[350532780,1737948653414,-13478.26,0.00018215,2]
[350532782,1737948653423,-850.65,0.00018215,2]
[350532784,1737948653434,-542.45,0.00018215,2]
[350532786,1737948653443,-694.5,0.00018215,2]
[350532788,1737948653452,-5174.34,0.00018215,2]
[350532790,1737948653461,-823.08,0.00018215,2]
[350532792,1737948653470,-500.0,0.00018215,2]
[350532794,1737948653482,-151.0,0.00018216,2]
[350532796,1737948653491,-151.0,0.00018216,2]
[350532798,1737948653500,-151.0,0.00018216,2]
[350532800,1737948653509,-151.0,0.00018216,2]
[350532802,1737948653519,-151.0,0.00018216,2]
[350532804,1737948653528,-500.0,0.00018217,2]
[350532806,1737948653538,-481.23476375,0.00018348,2]
[350532808,1737948653547,-897.09,0.0001835,2]
[350532810,1737948653557,-500.0,0.0001835,2]
[350532812,1737948653566,-1080.97,0.00018351,2]
[350532814,1737948653576,-2381.41,0.00018351,2]
[350532816,1737948653586,-824.06,0.00018351,2]
[350532818,1737948653595,-1084.01,0.00018351,2]
[350532820,1737948653604,-500.0,0.00018351,2]
[350532822,1737948653613,-500.0,0.00018351,2]
[350532824,1737948653623,-571.86,0.00018351,2]
[350532826,1737948653632,-500.0,0.00018351,2]
[350532828,1737948653641,-500.0,0.00018351,2]
[350532830,1737948653651,-500.0,0.00018351,2]
[350532832,1737948653661,-615.91086953,0.00018351,2]
[350532834,1737948653670,-811.84,0.00018351,2]
[350532836,1737948653681,-500.0,0.00018351,2]
[350532838,1737948653691,-500.0,0.00018351,2]
[350532840,1737948653700,-3535.05,0.00018352,2]
[350532842,1737948653709,-500.0,0.00018352,2]
[350532844,1737948653719,-621.36,0.00018352,2]
[350532846,1737948653729,-2603.9,0.00018352,2]
[350532848,1737948653738,-13478.26,0.00018352,2]
[350532850,1737948653747,-850.65,0.00018352,2]
[350532852,1737948653756,-542.45,0.00018352,2]
[350532854,1737948653765,-694.5,0.00018352,2]
[350532856,1737948653775,-5174.34,0.00018352,2]
[350532858,1737948653785,-823.08,0.00018352,2]
[350532860,1737948653794,-500.0,0.00018352,2]
[350532862,1737948653804,-151.0,0.00018353,2]
[350532864,1737948653813,-151.0,0.00018353,2]
[350532875,1737948653906,-151.0,0.00018353,2]
[350532877,1737948653916,-151.0,0.00018353,2]
[350532879,1737948653927,-151.0,0.00018353,2]
[350532881,1737948653935,-500.0,0.00018354,2]
[350532883,1737948653945,-1677.0467847,0.00018468,2]
[350532885,1737948653955,-176.579,0.00018481,2]
[350532887,1737948653964,-897.09,0.00018487,2]
[350532889,1737948653973,-500.0,0.00018487,2]
[350532891,1737948653982,-1080.97,0.00018488,2]
[350532893,1737948653992,-2381.41,0.00018488,2]
[350532896,1737948654003,-824.06,0.00018488,2]
[350532897,1737948654012,-1084.01,0.00018488,2]
[350532899,1737948654022,-500.0,0.00018488,2]
[350532901,1737948654033,-500.0,0.00018488,2]
[350532903,1737948654042,-571.86,0.00018488,2]
[350532905,1737948654051,-500.0,0.00018488,2]
[350532907,1737948654061,-500.0,0.00018488,2]
[350532909,1737948654070,-500.0,0.00018488,2]
[350532911,1737948654080,-811.84,0.00018488,2]
[350532913,1737948654089,-500.0,0.00018488,2]
[350532915,1737948654099,-500.0,0.00018488,2]
[350532917,1737948654108,-3535.05,0.00018489,2]
[350532919,1737948654118,-500.0,0.00018489,2]
[350532921,1737948654127,-621.36,0.00018489,2]
[350532923,1737948654137,-2603.9,0.00018489,2]
[350532925,1737948654147,-13478.26,0.00018489,2]
[350532927,1737948654156,-850.65,0.00018489,2]
[350532929,1737948654166,-542.45,0.00018489,2]
[350532932,1737948654176,-694.5,0.00018489,2]
[350532933,1737948654185,-5174.34,0.00018489,2]
[350532935,1737948654194,-823.08,0.00018489,2]
[350532937,1737948654204,-500.0,0.00018489,2]
[350532939,1737948654214,-287.94367,0.0001849,2]
[350532941,1737948654223,-287.94367,0.0001849,2]
[350532943,1737948654232,-281.072953,0.0001849,2]
[350532945,1737948654241,-506.311354,0.0001849,2]
[350532947,1737948654251,-532.255471,0.0001849,2]
[350532949,1737948654260,-151.0,0.0001849,2]
[350532951,1737948654269,-532.255471,0.0001849,2]
[350532953,1737948654280,-346.03952,0.0001849,2]
[350532955,1737948654290,-346.03952,0.0001849,2]
[350532958,1737948654300,-151.0,0.0001849,2]
[350532959,1737948654310,-151.0,0.0001849,2]
[350532962,1737948654320,-151.0,0.0001849,2]
[350532964,1737948654330,-151.0,0.0001849,2]
[350532966,1737948654339,-151.0,0.0001849,2]
[350532968,1737948654349,-151.0,0.0001849,2]
[350532970,1737948654359,-606.42995,0.0001849,2]
[350532972,1737948654368,-606.42995,0.0001849,2]
[350532974,1737948654378,-1442.638918,0.0001849,2]
[350532976,1737948654390,-1442.638918,0.0001849,2]
[350532978,1737948654401,-393.922412,0.0001849,2]
[350532980,1737948654410,-393.922412,0.0001849,2]
[350532982,1737948654419,-151.0,0.0001849,2]
[350532983,1737948654430,-151.0,0.00018491,2]
[350532985,1737948654439,-151.0,0.00018491,2]
[350532987,1737948654447,-500.0,0.00018491,2]
[350532989,1737948654456,-151.0,0.00018491,2]
[350532991,1737948654469,-233.070046,0.00018491,2]
[350532993,1737948654479,-233.070046,0.00018491,2]
[350532995,1737948654488,-284.116214,0.00018491,2]
[350532997,1737948654497,-284.116214,0.00018491,2]
[350532999,1737948654507,-2876.46392309,0.000185,2]
[350533001,1737948654516,-2876.46392308,0.000185,2]
[350533003,1737948654525,-2876.46392308,0.000185,2]
[350533005,1737948654535,-2876.46392308,0.000185,2]
[350533007,1737948654544,-2437.30320562,0.000185,2]
[350533009,1737948654553,-2437.30320561,0.000185,2]
[350533011,1737948654563,-2437.30320561,0.000185,2]
[350533013,1737948654572,-2437.30320561,0.000185,2]
[350533015,1737948654581,-481.23476375,0.00018555,2]
[350533017,1737948654590,-150.68,0.000186,2]
[350533019,1737948654599,-150.68,0.000186,2]
[350533021,1737948654609,-897.09,0.00018624,2]
[350533023,1737948654618,-500.0,0.00018624,2]
[350533025,1737948654628,-1080.97,0.00018625,2]
[350533027,1737948654637,-2381.41,0.00018625,2]
[350533029,1737948654646,-824.06,0.00018625,2]
[350533031,1737948654655,-1084.01,0.00018625,2]
[350533033,1737948654664,-500.0,0.00018625,2]
[350533036,1737948654675,-500.0,0.00018625,2]
[350533037,1737948654684,-571.86,0.00018625,2]
[350533039,1737948654694,-500.0,0.00018625,2]
[350533041,1737948654704,-500.0,0.00018625,2]
[350533043,1737948654713,-500.0,0.00018625,2]
[350533045,1737948654722,-811.84,0.00018625,2]
[350533047,1737948654731,-500.0,0.00018625,2]
[350533049,1737948654741,-500.0,0.00018625,2]
[350533051,1737948654750,-3535.05,0.00018626,2]
[350533053,1737948654760,-284.6,0.00018626,2]
[350533055,1737948654769,-621.36,0.00018626,2]
[350533057,1737948654779,-106.618239,0.00018626,2]
[350533060,1737948654792,-2497.281761,0.00018626,2]
[350533062,1737948654802,-2513.10221142,0.00018626,2]
[350533064,1737948654813,-990.66197027,0.00018626,2]
[350534343,1737948840380,10000.0,0.00023502,120]
[350534346,1737948887864,10000.0,0.00023502,120]
[350534347,1737948897211,3050.0,0.00023502,120]
[350534361,1737949141788,394.0,0.00023,120]
[350534362,1737949310542,164.94637,0.00013973,2]
[350534363,1737949341019,763.56,0.00010959,2]
[350534364,1737949446242,287.273098,0.00015056,2]
[350534365,1737949459579,466.244642,0.00013699,2]
[350534366,1737949461264,287.273098,0.00015056,2]
[350534367,1737949483061,498.83,0.00011,2]
[350534372,1737949527987,287.273098,0.00015056,2]
[350534373,1737949536123,-287.273098,0.00015673,2]
[350534374,1737949536144,-172.17343758,0.00016468,2]
[350534375,1737949536164,-349.43844346,0.00016567,2]
[350534376,1737949536186,-500.0,0.00016567,2]
[350534377,1737949536207,-500.0,0.00016567,2]
[350534378,1737949536228,-500.0,0.00016567,2]
[350534379,1737949536249,-300.0,0.00016567,2]
[350534380,1737949536269,-500.0,0.00016567,2]
[350534381,1737949536290,-500.0,0.00016567,2]
[350534382,1737949536309,-500.0,0.00016567,2]
[350534383,1737949536329,-500.0,0.00016568,2]
[350534384,1737949536350,-500.0,0.00016568,2]
[350534385,1737949536370,-500.0,0.00016568,2]
[350534386,1737949536391,-500.0,0.00016568,2]
[350534387,1737949536411,-624.04208964,0.00016568,2]
[350534388,1737949536430,-500.0,0.00016568,2]
[350534389,1737949536450,-500.0,0.00016568,2]
[350534390,1737949536470,-500.0,0.00016568,2]
[350534391,1737949536490,-500.0,0.00016568,2]
[350534392,1737949536510,-500.0,0.00016568,2]
[350534393,1737949536532,-1520.35,0.00016568,2]
[350534394,1737949536552,-404.03266255,0.00016568,2]
[350534395,1737949536572,-624.3,0.00016568,2]
[350534396,1737949536593,-500.0,0.00016568,2]
[350534397,1737949536613,-500.0,0.00016568,2]
[350534398,1737949536634,-442.75227528,0.00016568,2]
[350534399,1737949536654,-500.0,0.00016568,2]
[350534400,1737949536675,-599.79,0.00016568,2]
[350534401,1737949536697,-500.0,0.00016568,2]
[350534402,1737949536719,-500.0,0.00016568,2]
[350534403,1737949536746,-410.54,0.00016568,2]
[350534404,1737949536772,-508.94007166,0.00016568,2]
[350534405,1737949536794,-6115.55,0.00016568,2]
[350534406,1737949536814,-526.85,0.00016568,2]
[350534407,1737949536836,-1987.77,0.00016568,2]
[350534408,1737949536857,-469.62746594,0.00016568,2]
[350534409,1737949536878,-500.0,0.00016568,2]
[350534410,1737949536900,-500.0,0.00016568,2]
[350534411,1737949536920,-591.494807,0.00016568,2]
[350534412,1737949536940,-500.0,0.00016568,2]
[350534413,1737949536962,-500.0,0.00016568,2]
[350534414,1737949536983,-500.0,0.00016568,2]
[350534415,1737949537005,-500.0,0.00016568,2]
[350534416,1737949537026,-500.0,0.00016568,2]
[350534417,1737949537048,-500.0,0.00016568,2]
[350534418,1737949537069,-500.0,0.00016568,2]
[350534419,1737949537090,-500.0,0.00016568,2]
[350534420,1737949537112,-500.0,0.00016568,2]
[350534421,1737949537134,-500.0,0.00016568,2]
[350534422,1737949537155,-217.78506352,0.00016568,2]
[350534423,1737949537175,-500.0,0.00016568,2]
[350534424,1737949537196,-500.0,0.00016568,2]
[350534425,1737949537217,-500.0,0.00016568,2]
[350534426,1737949537238,-500.0,0.00016568,2]
[350534427,1737949537259,-500.0,0.00016568,2]
[350534428,1737949537279,-500.0,0.00016568,2]
[350534429,1737949537299,-500.0,0.00016568,2]
[350534430,1737949537320,-1069.95,0.00016568,2]
[350534431,1737949537341,-568.17,0.00016568,2]
[350534432,1737949537361,-500.0,0.00016568,2]
[350534433,1737949537382,-500.0,0.00016568,2]
[350534434,1737949537403,-1604.23,0.00016568,2]
[350534435,1737949537423,-500.0,0.00016568,2]
[350534436,1737949537442,-371.0494454,0.00016568,2]
[350534437,1737949537462,-500.0,0.00016568,2]
[350534438,1737949537482,-500.0,0.00016568,2]
[350534439,1737949537502,-500.0,0.00016568,2]
[350534440,1737949537523,-500.0,0.00016568,2]
[350534441,1737949537543,-500.0,0.00016568,2]
[350534442,1737949537562,-500.0,0.00016568,2]
[350534443,1737949537583,-605.38,0.00016568,2]
[350534444,1737949537603,-500.0,0.00016568,2]
[350534445,1737949537623,-273.64789459,0.00016568,2]
[350534446,1737949537645,-500.0,0.00016568,2]
[350534447,1737949537666,-500.0,0.00016568,2]
[350534448,1737949537686,-500.0,0.00016568,2]
[350534449,1737949537708,-500.0,0.00016568,2]
[350534450,1737949537729,-500.0,0.00016568,2]
[350534451,1737949537750,-500.0,0.00016568,2]
[350534452,1737949537771,-500.0,0.00016568,2]
[350534453,1737949537791,-500.0,0.00016568,2]
[350534454,1737949537811,-500.0,0.00016568,2]
[350534455,1737949537831,-324.65939717,0.00016568,2]
[350534456,1737949537850,-500.0,0.00016568,2]
[350534457,1737949537871,-500.0,0.00016568,2]
[350534458,1737949537892,-500.0,0.00016568,2]
[350534459,1737949537912,-500.0,0.00016568,2]
[350534460,1737949537932,-500.0,0.00016568,2]
[350534461,1737949537957,-1567.82,0.00016568,2]
[350534462,1737949537976,-500.0,0.00016568,2]
[350534463,1737949537997,-500.0,0.00016568,2]
[350534464,1737949538017,-500.0,0.00016568,2]
[350534465,1737949538037,-500.0,0.00016568,2]
[350534466,1737949538058,-500.0,0.00016568,2]
[350534467,1737949538078,-500.0,0.00016568,2]
[350534468,1737949538098,-500.0,0.00016568,2]
[350534469,1737949538120,-500.0,0.00016568,2]
[350534470,1737949538142,-2456.37,0.00016568,2]
[350534471,1737949538162,-500.0,0.00016568,2]
[350534472,1737949538182,-500.0,0.00016568,2]
[350534473,1737949538201,-500.0,0.00016569,2]
[350534474,1737949538222,-500.0,0.00016569,2]
[350534475,1737949538241,-312.58059196,0.00016569,2]
[350534476,1737949538262,-500.0,0.00016569,2]
[350534477,1737949538282,-202.99909174,0.00016569,2]
[350534478,1737949538301,-500.0,0.00016569,2]
[350534479,1737949538322,-500.0,0.00016569,2]
[350534480,1737949538342,-412.49586542,0.00016569,2]
[350534481,1737949538361,-500.0,0.00016569,2]
[350534482,1737949538381,-500.0,0.00016569,2]
[350534483,1737949538401,-500.0,0.00016569,2]
[350534484,1737949538420,-518.81910818,0.00016569,2]
[350534485,1737949538440,-500.0,0.00016569,2]
[350534486,1737949538459,-548.38,0.00016569,2]
[350534487,1737949538479,-500.0,0.00016569,2]
[350534488,1737949538499,-500.0,0.00016569,2]
[350534489,1737949538518,-500.0,0.00016569,2]
[350534490,1737949538537,-497.05359855,0.00016569,2]
[350534491,1737949538557,-500.0,0.00016569,2]
[350534492,1737949538576,-226.1652587,0.00016569,2]
[350534493,1737949538596,-500.0,0.00016569,2]
[350534494,1737949538617,-500.0,0.00016569,2]
[350534495,1737949538639,-500.0,0.00016569,2]
[350534496,1737949538658,-502.84818022,0.00016569,2]
[350534497,1737949538678,-500.0,0.00016569,2]
[350534498,1737949538701,-500.0,0.00016569,2]
[350534499,1737949538720,-500.0,0.00016569,2]
[350534500,1737949538867,-500.0,0.00016569,2]
[350534501,1737949538888,-500.0,0.00016571,2]
[350534502,1737949538908,-502.04255112,0.00016571,2]
[350534503,1737949538927,-501.50448116,0.00016571,2]
[350534504,1737949538946,-500.0,0.00016571,2]
[350534505,1737949538966,-500.0,0.00016571,2]
[350534506,1737949538985,-500.0,0.00016571,2]
[350534507,1737949539004,-500.0,0.00016571,2]
[350534508,1737949539023,-196.00246403,0.00016571,2]
[350534509,1737949539043,-501.51623784,0.00016571,2]
[350534510,1737949539063,-500.0,0.00016571,2]
[350534511,1737949539089,-500.0,0.00016571,2]
[350534512,1737949539109,-500.84518125,0.00016571,2]
[350534513,1737949539128,-501.98252145,0.00016571,2]
[350534514,1737949539149,-432.14133447,0.00016571,2]
[350534515,1737949539169,-501.51373324,0.00016571,2]
[350534516,1737949539189,-500.0,0.00016572,2]
[350534517,1737949539209,-504.5813433,0.00016572,2]
[350534518,1737949539228,-500.0,0.00016572,2]
[350534519,1737949539247,-501.84952798,0.00016572,2]
[350534520,1737949539267,-500.0,0.00016572,2]
[350534521,1737949539286,-500.0,0.00016572,2]
[350534522,1737949539305,-500.0,0.00016572,2]
[350534523,1737949539326,-500.0,0.00016572,2]
[350534524,1737949539346,-500.0,0.00016572,2]
[350534525,1737949539366,-500.0,0.00016572,2]
[350534526,1737949539388,-361.35530298,0.00016704,2]
[350534527,1737949539409,-225.55841892,0.00016704,2]
[350534528,1737949539429,-505.3524632,0.00016704,2]
[350534529,1737949539452,-451.23823768,0.00016704,2]
[350534530,1737949539473,-509.25294442,0.00016704,2]
[350534531,1737949539496,-500.0,0.00016704,2]
[350534532,1737949539518,-500.0,0.00016704,2]
[350534533,1737949539538,-174.7,0.00016704,2]
[350534534,1737949539561,-500.0,0.00016704,2]
[350534535,1737949539582,-500.0,0.00016704,2]
[350534536,1737949539603,-500.0,0.00016705,2]
[350534537,1737949539623,-295.64,0.00016705,2]
[350534538,1737949539646,-500.0,0.00016705,2]
[350534539,1737949539666,-279.47,0.00016705,2]
[350534540,1737949539687,-500.0,0.00016705,2]
[350534541,1737949539712,-412.7,0.00016705,2]
[350534542,1737949539735,-380.12812761,0.00016705,2]
[350534543,1737949539757,-1520.35,0.00016705,2]
[350534544,1737949539781,-624.3,0.00016705,2]
[350534545,1737949539802,-500.0,0.00016705,2]
[350534546,1737949539823,-471.12192951,0.00016705,2]
[350534547,1737949539845,-599.79,0.00016705,2]
[350534548,1737949539867,-649.55,0.00016705,2]
[350534549,1737949539891,-6115.55,0.00016705,2]
[350534550,1737949539913,-1987.77,0.00016705,2]
[350534551,1737949539934,-500.0,0.00016705,2]
[350534552,1737949539955,-500.0,0.00016705,2]
[350534553,1737949539978,-500.0,0.00016705,2]
[350534554,1737949539999,-500.0,0.00016705,2]
[350534555,1737949540021,-500.0,0.00016705,2]
[350534556,1737949540042,-500.0,0.00016705,2]
[350534557,1737949540063,-500.0,0.00016705,2]
[350534558,1737949540084,-500.0,0.00016705,2]
[350534559,1737949540105,-500.0,0.00016705,2]
[350534560,1737949540126,-323.51,0.00016705,2]
[350534561,1737949540147,-500.0,0.00016705,2]
[350534562,1737949540168,-1069.95,0.00016705,2]
[350534563,1737949540190,-1604.23,0.00016705,2]
[350534564,1737949540212,-500.0,0.00016705,2]
[350534565,1737949540232,-500.0,0.00016705,2]
[350534566,1737949540254,-500.0,0.00016705,2]
[350534567,1737949540276,-500.0,0.00016705,2]
[350534568,1737949540296,-500.0,0.00016705,2]
[350534569,1737949540318,-500.0,0.00016705,2]
[350534570,1737949540341,-1567.82,0.00016705,2]
[350534571,1737949540363,-263.41,0.00016705,2]
[350534572,1737949540386,-2456.37,0.00016705,2]
[350534573,1737949540407,-313.33586299,0.00016706,2]
[350534574,1737949540428,-244.24,0.00016706,2]
[350534575,1737949540449,-500.0,0.00016706,2]